bitfinex-derivatives/quotes_ETHF0:USTF0_20240927
["timestamp","ask_amount","ask_price","bid_price","bid_amount"]
[1727447777925,0.3204448,2693.9,2693.5,3.2078]
[1727447778127,0.37103,2694.0,2693.5,3.2078]
[1727447778327,0.37105,2693.8,2693.5,3.2078]
[1727447778624,1.364,2694.1,2693.5,3.2078]
[1727447778625,0.37106,2693.7,2693.5,3.2078]
[1727447778836,0.37106,2693.8,2693.5,3.2078]
[1727447779030,0.37103,2694.0,2693.5,3.2078]
[1727447779226,1.94307034,2694.3,2693.5,4.6449]
[1727447779429,0.69141005,2694.2,2693.6,0.37107]
[1727447779631,0.32041005,2694.1,2693.6,0.37107]
[1727447779932,0.371,2694.2,2693.6,1.81427]
[1727447780132,0.32034654,2694.1,2693.6,1.81427]
[1727447780332,3.2078,2694.5,2693.6,1.4432]
[1727447780524,3.2078,2694.5,2693.9,0.37104]
[1727447780525,0.69127613,2694.4,2693.9,0.37104]
[1727447780744,0.37092,2694.8,2694.1,3.2078]
[1727447781027,0.37092,2694.8,2693.9,1.3329]
[1727447781028,0.3202237,2694.7,2694.4,3.2078]
[1727447781227,9.59377,2695.2,2694.4,3.2078]
[1727447781228,0.3202237,2694.6,2694.4,3.2078]
[1727447781432,0.3202237,2694.5,2694.1,3.2078]
[1727447781727,0.371,2694.2,2694.1,3.2078]
[1727447782724,4.083,2694.2,2693.7,3.2078]
[1727447782928,0.37105,2693.8,2693.7,3.2078]
[1727447783928,3.57,2694.2,2693.7,3.2078]
[1727447783929,0.37103,2694.0,2693.7,3.2078]
[1727447784131,0.37105,2693.8,2693.7,3.2078]
[1727447784430,0.92752,2694.2,2693.7,3.2078]
[1727447784431,0.37104,2693.9,2693.7,3.2078]
[1727447784626,0.37105,2693.8,2693.7,3.2078]
[1727447784925,0.37105,2693.9,2693.7,3.2078]
[1727447785122,0.37105,2693.8,2693.7,3.2078]
[1727447786624,0.37109,2693.5,2693.4,3.2078]
[1727447787022,4.08389,2693.5,2693.4,3.2078]
[1727447788628,0.37113,2693.3,2693.0,4.6278]
[1727447788935,0.37114,2693.2,2693.0,4.6278]
[1727447789139,0.92769,2693.7,2693.0,4.6278]
[1727447789140,0.37115,2693.1,2693.0,4.6278]
[1727447789332,3.57,2693.7,2693.0,4.6278]
[1727447789333,0.92775,2693.5,2693.0,4.6278]
[1727447789538,0.37115,2693.1,2693.0,4.6278]
[1727447789737,0.92788,2693.1,2692.5,4.14972508]
[1727447789938,4.49791,2693.0,2692.5,3.2078]
[1727447790236,0.3712,2692.7,2692.4,1.3752]
[1727447790442,4.49791,2693.0,2692.4,1.3752]
[1727447790443,3.57,2693.0,2692.4,1.3752]
[1727447790635,0.37119,2692.8,2692.4,1.3752]
[1727447790831,0.37118,2692.9,2692.4,1.74644]
[1727447791033,0.37118,2692.9,2692.4,4.95424]
[1727447791237,1.3869,2693.2,2692.4,4.583]
[1727447791431,0.92788,2693.1,2692.4,4.583]
[1727447791634,0.37121,2692.7,2692.4,4.583]
[1727447792141,3.57,2693.0,2692.4,4.583]
[1727447792334,1.3869,2693.2,2692.4,4.583]
[1727447792535,0.3712,2692.8,2692.4,4.583]
[1727447792739,0.92788,2693.1,2692.4,4.583]
[1727447792932,0.37122,2692.6,2692.4,4.583]
[1727447793134,4.13578,2692.8,2692.4,3.2078]
[1727447793341,4.7531,2692.9,2692.4,3.2078]
[1727447793543,0.37122,2692.6,2692.4,3.2078]
[1727447794142,4.08563,2692.5,2692.4,3.2078]
[1727447794440,0.37129,2692.1,2691.9,4.5789]
[1727447794644,2.38088,2692.5,2691.9,4.5789]
[1727447794935,7.8173,2692.9,2691.9,4.5789]
[1727447795136,1.4528,2693.1,2692.2,3.2078]
[1727447795332,1.4528,2693.1,2692.3,0.37125]
[1727447795333,0.3712,2692.8,2692.3,0.37125]
[1727447795532,0.3712,2692.8,2692.2,3.2078]
[1727447795533,1.4528,2693.1,2692.2,3.57906]
[1727447795732,1.4528,2693.1,2692.2,3.2078]
[1727447795733,3.2078,2693.1,2692.2,3.2078]
[1727447795933,0.92791,2693.0,2692.2,3.57906]
[1727447796136,0.92794,2692.9,2692.2,3.2078]
[1727447796339,0.92798,2692.8,2692.2,3.2078]
[1727447796536,0.37125,2692.4,2692.2,3.2078]
[1727447796834,1.29941,2692.3,2692.2,3.2078]
[1727447797234,0.37126,2692.3,2692.2,3.2078]
[1727447797436,4.08566,2692.3,2692.2,3.2078]
[1727447799337,14.58381,2692.3,2692.2,3.2078]
[1727447799537,1.29955,2692.0,2691.9,1.3711]
[1727447799740,0.37132,2691.9,2691.6,4.655]
[1727447799938,0.92821,2692.2,2691.6,4.655]
[1727447800144,0.37134,2691.8,2691.6,4.655]
[1727447801040,3.58,2692.3,2691.8,0.37132]
[1727447801235,0.37128,2692.2,2691.9,1.4512]
[1727447801442,3.95127,2692.3,2691.9,5.03031]
[1727447801739,0.01,2692.3,2692.1,0.37128]
[1727447801942,0.01,2692.3,2691.9,4.659]
[1727447802132,0.01,2692.3,2692.2,3.2078]
[1727447802336,0.01,2692.3,2692.2,3.57907]
[1727447802949,0.01,2692.3,2692.2,3.2078]
[1727447803147,4.49793,2693.0,2692.2,3.2078]
[1727447803449,3.57895,2693.1,2692.7,0.3712]
[1727447803646,3.2078,2693.1,2692.5,3.2078]
[1727447803837,3.2078,2693.1,2692.6,0.37121]
[1727447804037,3.57,2693.6,2692.5,3.2078]
[1727447804038,0.37114,2693.2,2692.7,0.3712]
[1727447804238,0.37114,2693.2,2692.5,3.2078]
[1727447804239,2.26524,2693.5,2692.6,0.37121]
[1727447804541,2.26524,2693.5,2692.3,2.7619]
[1727447804542,1.3375,2693.5,2692.8,3.2078]
[1727447804841,3.57,2693.6,2692.8,3.2078]
[1727447805041,0.37104,2693.9,2693.2,3.2078]
[1727447805243,5.9541,2694.3,2693.3,1.3981]
[1727447805244,0.37107,2693.7,2693.3,1.3981]
[1727447805637,4.49757,2694.0,2693.3,1.3981]
[1727447805844,0.3711,2693.5,2693.2,3.2078]
[1727447806043,0.37111,2693.5,2692.9,4.5632]
[1727447806240,0.37111,2693.5,2693.0,0.37115]
[1727447806436,0.9276,2693.9,2693.0,1.3596]
[1727447806437,0.37111,2693.4,2693.0,1.3596]
[1727447806739,3.57,2693.7,2693.0,1.3596]
[1727447806943,0.37111,2693.5,2693.0,1.73076]
[1727447807144,0.37111,2693.4,2693.0,1.3596]
[1727447807341,3.2078,2693.6,2693.0,1.3596]
[1727447807543,0.37115,2693.1,2693.0,1.3596]
[1727447808046,0.37115,2693.1,2692.9,3.2078]
[1727447808047,3.7136,2693.1,2692.9,3.2078]
[1727447808242,0.37115,2693.1,2692.9,3.2078]
[1727447808651,3.57,2693.4,2692.9,3.2078]
[1727447808839,0.37116,2693.1,2692.9,3.2078]
[1727447809047,0.37114,2693.2,2692.9,3.2078]
[1727447809255,1.4255,2693.6,2692.9,3.2078]
[1727447809545,0.37113,2693.3,2692.9,3.2078]
[1727447809751,4.4977,2693.7,2693.1,0.37115]
[1727447809752,0.37109,2693.5,2693.1,0.37115]
[1727447809953,0.37111,2693.4,2693.0,0.37115]
[1727447810139,3.2078,2693.9,2692.9,3.2078]
[1727447810338,3.2078,2693.9,2692.7,2.8823]
[1727447810339,3.57,2694.0,2693.2,3.2078]
[1727447810547,0.9276,2693.9,2693.2,3.2078]
[1727447810737,0.92763,2693.8,2693.2,3.2078]
[1727447810942,3.57,2693.7,2692.9,3.2078]
[1727447811144,0.3711,2693.5,2692.9,3.2078]
[1727447811347,0.37109,2693.6,2692.9,3.2078]
[1727447811543,3.57,2694.0,2693.2,3.2078]
[1727447811742,1.4323,2694.2,2693.5,3.57888]
[1727447811743,0.37104,2693.9,2693.5,3.57888]
[1727447811949,1.4323,2694.2,2693.6,1.3756]
[1727447812251,0.37106,2693.7,2693.6,1.3756]
[1727447812641,4.08386,2693.7,2693.6,1.3756]
[1727447812838,3.57,2694.0,2693.6,1.3756]
[1727447813045,0.37105,2693.8,2693.6,1.3756]
[1727447813441,0.37105,2693.9,2693.6,1.3756]
[1727447813643,0.371,2694.2,2693.8,0.37104]
[1727447813854,0.37102,2694.0,2693.7,0.37106]
[1727447814068,0.92745,2694.4,2693.7,0.37106]
[1727447814346,0.37106,2693.8,2693.6,1.3756]
[1727447814547,0.37106,2693.7,2693.6,1.3756]
[1727447814748,1.29873,2693.7,2693.6,1.3756]
[1727447814950,4.08386,2693.7,2693.6,1.3756]
[1727447815146,7.2828,2693.7,2693.2,3.2078]
[1727447815349,0.37112,2693.3,2693.2,3.2078]
[1727447815551,0.37111,2693.4,2693.2,3.2078]
[1727447815952,0.37112,2693.3,2693.2,3.2078]
[1727447816551,0.37117,2692.9,2692.8,3.2078]
[1727447816746,0.37119,2692.8,2692.7,4.1693]
[1727447816952,3.57,2693.4,2692.8,0.37118]
[1727447816953,0.37115,2693.2,2692.8,0.37118]
[1727447817163,0.37112,2693.4,2693.0,0.37115]
[1727447817453,0.37111,2693.4,2692.8,3.2078]
[1727447817654,0.37111,2693.4,2693.0,0.37115]
[1727447817846,0.3711,2693.5,2692.8,3.2078]
[1727447818153,0.37109,2693.6,2693.3,0.37112]
[1727447818346,0.37109,2693.6,2693.4,2.7578]
[1727447818748,0.37109,2693.5,2693.4,2.7578]
[1727447819457,1.29883,2693.5,2693.4,1.3815]
[1727447819642,1.29897,2693.2,2693.1,3.2078]
[1727447819846,2.22681,2693.2,2693.1,3.2078]
[1727447820051,1.29911,2692.9,2692.8,1.3377]
[1727447820452,5.01271,2692.9,2692.8,1.3377]
[1727447820759,5.01271,2692.9,2692.4,1.3834]
[1727447820760,3.7136,2692.9,2692.4,1.3834]
[1727447821056,0.92781,2693.3,2692.5,1.3377]
[1727447821252,11.0762,2693.4,2692.5,1.3377]
[1727447821253,0.92794,2693.0,2692.5,1.3377]
[1727447821457,0.37121,2692.7,2692.5,1.3377]
[1727447821653,0.92784,2693.2,2692.5,1.70893]
[1727447821850,3.57,2693.4,2692.7,3.2078]
[1727447822155,3.39384374,2694.0,2692.7,3.2078]
[1727447822156,0.92754,2694.1,2693.3,3.2078]
[1727447822347,0.69110518,2694.0,2693.6,3.2078]
[1727447822544,0.69110518,2694.0,2693.6,3.57887]
[1727447822545,0.32007518,2693.9,2693.6,3.57887]
[1727447822757,0.9275,2694.2,2693.6,3.2078]
[1727447822957,0.37106,2693.7,2693.4,4.2735]
[1727447823159,0.37107,2693.7,2693.4,4.2735]
[1727447823344,0.92756,2694.1,2693.4,4.2735]
[1727447823546,0.37105,2693.9,2693.5,0.37109]
[1727447823857,0.92756,2694.1,2693.4,4.6446]
[1727447823858,0.37106,2693.8,2693.4,4.6446]
[1727447824064,0.37107,2693.7,2693.4,4.2735]
[1727447824657,0.92753,2694.1,2693.4,2.8177]
[1727447824658,0.92757,2694.0,2693.4,2.8177]
[1727447824851,0.92757,2694.0,2693.4,3.1888]
[1727447824852,0.37105,2693.8,2693.4,3.1888]
[1727447825046,0.37105,2693.8,2693.5,0.37109]
[1727447825260,0.37105,2693.8,2693.4,3.1888]
[1727447825448,0.92757,2694.0,2693.4,2.8177]
[1727447825650,0.37106,2693.8,2693.4,3.1888]
[1727447825846,3.57,2694.1,2693.4,3.1888]
[1727447825847,0.37107,2693.7,2693.4,2.8177]
[1727447826047,0.92757,2694.0,2693.4,2.8177]
[1727447826048,0.37109,2693.5,2693.4,2.8177]
[1727447826659,0.9276,2693.9,2693.4,2.8177]
[1727447826953,3.57,2694.1,2693.4,2.8177]
[1727447827161,0.37103,2694.0,2693.6,3.2078]
[1727447827459,0.37102,2694.1,2693.7,1.4223]
[1727447827759,0.371,2694.2,2693.8,0.37105]
[1727447827953,0.32015582,2694.1,2693.9,0.37104]
[1727447828154,0.37101,2694.1,2693.7,1.4223]
[1727447828353,0.371,2694.2,2693.8,0.37105]
[1727447828656,0.37102,2694.1,2693.7,1.4223]
[1727447828856,0.37102,2694.1,2693.8,0.37105]
[1727447829247,0.92746,2694.3,2693.7,1.4223]
[1727447829461,3.57,2694.1,2693.6,3.2078]
[1727447829653,0.37109,2693.5,2693.4,2.8177]
[1727447832562,0.37109,2693.6,2693.4,2.8177]
[1727447832764,0.37109,2693.5,2693.4,2.8177]
[1727447832953,3.57,2693.8,2693.4,2.8177]
[1727447833154,0.37106,2693.8,2693.4,2.8177]
[1727447833349,0.9276,2693.9,2693.4,3.1888]
[1727447833561,0.37108,2693.6,2693.4,2.8177]
[1727447833756,0.37108,2693.6,2693.4,3.18881]
[1727447833958,0.9276,2693.9,2693.4,3.18881]
[1727447834161,0.9276,2693.9,2693.4,2.8177]
[1727447834461,0.37107,2693.7,2693.4,3.18879]
[1727447834962,0.37107,2693.7,2693.4,3.1888]
[1727447835459,0.37105,2693.9,2693.4,2.8177]
[1727447835664,0.37098,2694.4,2693.6,4.13549]
[1727447835857,0.371,2694.2,2694.0,3.2078]
[1727447836057,0.371,2694.2,2693.4,3.74546]
[1727447836058,0.92746,2694.3,2693.7,3.2078]
[1727447836255,4.49756,2694.1,2693.7,3.2078]
[1727447836455,1.29868,2693.8,2693.7,3.2078]
[1727447836960,8.58068,2693.8,2693.7,3.2078]
[1727447837260,14.58068,2693.8,2693.7,3.2078]
[1727447837858,0.37109,2693.5,2693.4,1.4486]
[1727447838662,1.29883,2693.5,2693.4,1.4486]
[1727447839054,0.37113,2693.2,2693.1,3.2078]
[1727447839454,0.37116,2693.0,2692.9,1.4053]
[1727447839660,1.29907,2693.0,2692.9,1.4053]
[1727447840463,2.4557,2693.7,2692.9,5.1189]
[1727447840667,0.32032032,2693.6,2693.2,3.2078]
[1727447840865,4.49762,2693.9,2693.3,1.3251]
[1727447841066,0.69132415,2693.8,2693.4,0.3711]
[1727447841262,4.49762,2693.9,2693.3,1.3251]
[1727447841469,0.32030142,2693.8,2693.4,0.3711]
[1727447841769,0.37108,2693.6,2693.3,1.3251]
[1727447842163,0.37109,2693.5,2693.3,1.3251]
[1727447842468,0.37108,2693.6,2693.3,1.3251]
[1727447842761,4.49762,2693.9,2693.5,0.37109]
[1727447842762,3.94105,2693.9,2693.5,0.37109]
[1727447842963,0.32033154,2693.8,2693.3,1.3251]
[1727447843166,6.166,2693.2,2692.3,0.94192508]
[1727447843367,2.22748,2692.4,2692.3,0.94192508]
[1727447843566,0.92819,2692.2,2691.4,7.23148441]
[1727447843765,3.890352,2692.4,2691.4,7.23148441]
[1727447843766,8.0774,2691.9,2691.4,7.23148441]
[1727447843970,8.39801827,2691.9,2691.8,0.33891271]
[1727447844267,2.22813,2691.6,2691.5,2.81647525]
[1727447844464,2.22823,2691.5,2691.4,6.48663441]
[1727447844665,1.2999,2691.3,2691.2,8.81827409]
[1727447844868,4.82833197,2691.3,2691.2,3.89458032]
[1727447845065,14.54433197,2691.3,2691.2,3.89458032]
[1727447846069,0.37146,2690.8,2690.4,5.41606315]
[1727447846270,7.14926,2690.8,2690.4,5.41606315]
[1727447846470,16.86606,2690.8,2690.4,5.41606315]
[1727447846666,17.31606,2690.8,2690.4,5.41606315]
[1727447847466,11.31606,2690.8,2690.4,5.41606315]
[1727447847868,12.24473,2690.8,2690.4,5.41606315]
[1727447848263,11.31606,2690.8,2690.4,5.41606315]
[1727447849970,7.29606,2690.8,2690.4,5.41606315]
[1727447850768,8.22473,2690.8,2690.4,5.41606315]
[1727447850974,6.9246,2690.8,2690.0,1.4441]
[1727447851175,0.37154,2690.3,2690.0,1.8152]
[1727447851367,0.92884,2690.3,2689.3,3.57946]
[1727447851569,4.94881,2690.4,2689.3,7.4322]
[1727447851763,4.13668,2690.2,2689.3,7.4322]
[1727447852074,0.92898,2689.9,2689.3,7.4322]
[1727447852281,0.37162,2689.7,2689.3,7.4322]
[1727447852477,0.37163,2689.6,2689.3,7.4322]
[1727447852669,7.2278,2690.0,2689.3,7.4322]
[1727447852970,0.37159,2689.9,2689.3,7.80386]
[1727447853476,0.37161,2689.8,2689.3,7.4322]
[1727447853677,0.3716,2689.9,2689.3,7.80386]
[1727447853872,3.2078,2690.2,2689.3,7.80386]
[1727447853873,3.2078,2690.2,2689.3,8.36139]
[1727447854067,0.187,2691.0,2689.9,0.37158]
[1727447854068,0.37152,2690.5,2689.9,0.37158]
[1727447854263,3.2078,2690.4,2689.9,0.37158]
[1727447854470,3.2078,2690.4,2690.0,0.37157]
[1727447854670,7.2278,2690.8,2689.9,0.3711]
[1727447854976,0.37148,2690.7,2690.1,0.37155]
[1727447855174,0.37148,2690.7,2690.2,1.2483]
[1727447855379,0.37148,2690.7,2690.2,1.6194]
[1727447855672,7.2278,2690.8,2690.2,1.6194]
[1727447855874,0.37153,2690.3,2690.2,1.6194]
[1727447856075,0.37153,2690.4,2690.2,1.6194]
[1727447856274,7.2278,2690.8,2690.2,1.6194]
[1727447856574,7.59927,2690.8,2690.3,0.37152]
[1727447856879,0.37148,2690.7,2690.2,1.99094]
[1727447857175,0.37148,2690.7,2690.3,1.58593]
[1727447857369,0.37149,2690.7,2690.3,1.5855]
[1727447857575,0.37151,2690.5,2690.3,1.5855]
[1727447858174,0.37152,2690.4,2690.3,1.2144]
[1727447858372,0.37153,2690.3,2690.2,1.2483]
[1727447858569,0.37153,2690.3,2690.2,1.6194]
[1727447858770,0.37153,2690.3,2690.2,1.2483]
[1727447859079,4.08833,2690.3,2690.2,1.2483]
[1727447859272,0.37158,2690.0,2689.6,0.37162]
[1727447859470,3.2078,2690.1,2689.6,0.3711]
[1727447859667,0.37158,2690.0,2689.6,0.3711]
[1727447860280,0.3716,2689.9,2689.6,0.3711]
[1727447860471,3.2078,2689.8,2689.6,0.3711]
[1727447860873,4.94894,2690.1,2689.7,1.2923]
[1727447861073,0.37161,2689.8,2689.7,1.2923]
[1727447861275,3.7176,2689.8,2689.2,3.2078]
[1727447861579,4.02,2690.1,2689.3,1.2186]
[1727447861776,0.37159,2690.0,2689.5,0.37164]
[1727447862175,0.92895,2690.0,2689.5,0.3711]
[1727447862377,7.2278,2690.1,2689.5,0.3711]
[1727447862378,0.3716,2689.9,2689.5,0.3711]
[1727447862679,7.2278,2690.1,2689.5,0.3711]
[1727447863185,0.37162,2689.7,2689.5,0.3711]
[1727447863367,0.37161,2689.8,2689.5,0.3711]
[1727447863571,8.15673,2690.1,2689.5,0.3711]
[1727447864086,0.37161,2689.9,2689.5,0.3711]
[1727447864384,0.37161,2689.8,2689.5,0.3711]
[1727447864875,7.2278,2690.1,2689.5,0.3711]
[1727447865379,0.37158,2690.0,2689.5,0.3711]
[1727447865569,0.37163,2689.7,2689.5,0.3711]
[1727447865770,3.2078,2689.8,2689.4,1.231]
[1727447865771,4.13684,2689.8,2689.4,1.231]
[1727447865974,0.37163,2689.7,2689.4,1.231]
[1727447866281,3.2078,2689.8,2689.4,1.6021]
[1727447866475,0.37164,2689.6,2689.4,1.6021]
[1727447866675,3.2078,2689.8,2689.4,1.6021]
[1727447867081,0.37162,2689.7,2689.4,1.6021]
[1727447867483,3.2078,2690.1,2689.7,0.37161]
[1727447867782,3.2078,2690.1,2689.8,1.2679]
[1727447867986,3.2078,2690.1,2689.9,1.62649]
[1727447868481,3.2078,2690.1,2689.9,1.626]
[1727447868683,3.2078,2690.1,2689.9,1.99758]
[1727447868979,3.7176,2690.0,2689.4,3.2078]
[1727447869185,0.37163,2689.7,2689.4,0.3711]
[1727447869574,3.2078,2689.8,2689.5,0.37165]
[1727447869776,4.49894,2690.1,2689.7,0.37161]
[1727447869777,3.57937,2690.1,2689.7,0.37161]
[1727447869972,6.7778,2690.5,2689.5,0.3711]
[1727447870173,0.37153,2690.4,2690.0,0.37157]
[1727447870478,6.7778,2690.5,2690.1,2.5228]
[1727447870776,0.3715,2690.6,2690.2,0.37155]
[1727447870982,0.3715,2690.6,2690.1,2.5228]
[1727447870983,0.37151,2690.5,2690.1,3.26546]
[1727447871585,0.37151,2690.6,2690.2,0.37155]
[1727447871883,7.70649,2690.8,2690.1,3.26545]
[1727447872178,0.37151,2690.6,2690.1,2.8939]
[1727447872374,7.70649,2690.8,2690.2,0.37155]
[1727447872574,0.3715,2690.6,2690.1,3.26546]
[1727447872772,0.37151,2690.5,2690.1,3.26546]
[1727447872982,0.3715,2690.6,2690.2,0.37154]
[1727447873375,0.3715,2690.6,2690.2,0.3711]
[1727447873575,0.37151,2690.5,2690.2,0.3711]
[1727447873882,7.70649,2690.8,2690.2,0.3711]
[1727447874087,0.92873,2690.7,2690.2,0.3711]
[1727447874288,0.37154,2690.3,2690.2,0.3711]
[1727447874681,3.94153,2690.4,2690.1,2.5228]
[1727447874873,3.57,2690.4,2690.1,2.8939]
[1727447875185,0.37151,2690.5,2690.1,3.26545]
[1727447875388,0.37152,2690.4,2690.1,2.8939]
[1727447875681,0.37154,2690.3,2690.1,2.8939]
[1727447875987,3.57933,2690.4,2690.1,2.8939]
[1727447876188,3.57,2690.7,2690.1,2.8939]
[1727447876384,0.3715,2690.6,2690.1,3.26546]
[1727447876685,0.37151,2690.5,2690.1,3.26546]
[1727447876876,3.2078,2690.4,2690.1,2.8939]
[1727447877078,6.7778,2690.4,2690.1,2.8939]
[1727447877277,0.37154,2690.3,2690.1,2.8939]
[1727447877478,0.37155,2690.3,2690.1,2.8939]
[1727447877878,7.14933,2690.4,2690.1,2.8939]
[1727447878299,0.37155,2690.3,2690.1,2.8939]
[1727447878689,7.14934,2690.4,2690.1,2.5228]
[1727447878986,3.94153,2690.4,2690.1,2.8939]
[1727447879189,6.7778,2690.4,2690.1,2.8939]
[1727447879484,3.94153,2690.4,2690.1,2.8939]
[1727447879689,6.7778,2690.4,2690.1,2.8939]
[1727447879881,3.57929,2690.7,2690.1,2.8939]
[1727447880080,3.57929,2690.7,2690.2,0.37155]
[1727447880289,3.2078,2690.7,2690.2,0.37155]
[1727447880487,3.57929,2690.7,2690.2,0.74265]
[1727447880882,3.2078,2690.7,2690.2,0.3711]
[1727447881387,0.37151,2690.6,2690.2,0.3711]
[1727447881586,3.57929,2690.7,2690.2,0.74265]
[1727447882086,3.2078,2690.7,2690.2,0.3711]
[1727447882286,0.92875,2690.6,2690.2,0.3711]
[1727447882488,3.2078,2690.7,2690.2,0.74265]
[1727447882489,3.57929,2690.7,2690.2,0.74265]
[1727447882792,3.2078,2690.7,2690.2,0.3711]
[1727447882993,0.37146,2690.9,2690.4,0.37152]
[1727447883182,0.37146,2690.9,2690.3,0.37153]
[1727447883389,0.37145,2691.0,2690.4,0.37152]
[1727447883688,6.7778,2691.1,2690.4,0.3711]
[1727447883896,6.166,2691.0,2690.4,0.3711]
[1727447884190,0.37146,2690.9,2690.4,0.3711]
[1727447884395,0.95727986,2690.7,2690.4,0.3711]
[1727447884800,0.95727986,2690.7,2690.4,0.74262]
[1727447884998,0.95727986,2690.7,2690.4,0.3711]
[1727447885300,0.95727986,2690.9,2690.7,0.37148]
[1727447885486,0.95727986,2690.9,2690.8,2.6234]
[1727447885687,3.716,2690.9,2690.8,1.3256]
[1727447885892,0.95727986,2691.0,2690.8,1.3256]
[1727447886297,7.73507986,2691.1,2690.8,1.6967]
[1727447886800,0.95727986,2691.0,2690.8,1.6967]
[1727447886996,0.95727986,2691.2,2690.9,1.3109]
[1727447887291,0.95727986,2691.3,2691.0,0.37144]
[1727447887498,5.00591979,2691.4,2691.0,1.63394]
[1727447887499,0.95727986,2691.4,2691.0,1.63394]
[1727447887691,0.95727986,2691.5,2691.0,2.00504]
[1727447887891,0.37141,2691.3,2691.0,1.6336]
[1727447888085,3.57,2691.4,2691.0,1.6336]
[1727447888086,3.94139,2691.4,2691.0,1.6336]
[1727447888290,0.32081899,2691.3,2691.0,1.6336]
[1727447888489,3.57,2691.4,2691.0,2.00504]
[1727447888692,0.32081257,2691.3,2691.0,1.6336]
[1727447888899,3.57,2691.4,2691.0,1.6336]
[1727447889100,3.57,2691.4,2691.0,2.00504]
[1727447889101,0.32081735,2691.3,2691.0,2.00504]
[1727447889298,3.94139,2691.4,2691.0,1.6336]
[1727447889503,0.32077409,2691.3,2691.0,1.6336]
[1727447889796,0.32077409,2691.2,2691.0,1.6336]
[1727447890002,3.57,2691.4,2691.0,1.6336]
[1727447890202,0.32108552,2691.3,2691.0,1.6336]
[1727447890398,0.37144,2691.1,2690.9,1.3109]
[1727447890703,0.69252552,2691.0,2690.9,1.682]
[1727447890899,1.24970552,2691.0,2690.2,4.4367]
[1727447891196,0.37151,2690.6,2690.3,1.2183]
[1727447891399,0.37153,2690.4,2690.3,1.5894]
[1727447891794,0.92872,2690.7,2690.3,1.5894]
[1727447892096,0.37153,2690.4,2690.3,1.5894]
[1727447892292,0.69272535,2690.4,2690.3,1.5894]
[1727447892497,1.62154535,2690.4,2690.3,1.2183]
[1727447892801,1.30035,2690.4,2690.3,1.2183]
[1727447892990,0.37155,2690.2,2690.1,1.3194]
[1727447893195,0.69277088,2690.2,2690.1,1.6905]
[1727447894107,0.32122088,2690.2,2690.1,1.6905]
[1727447894406,0.32122088,2690.2,2689.8,1.2532]
[1727447894407,0.3716,2689.9,2689.8,1.2532]
[1727447894597,0.3716,2689.9,2689.2,1.2532]
[1727447894598,0.92908,2689.7,2689.2,1.2532]
[1727447894909,3.57945,2689.6,2689.2,1.2532]
[1727447895104,4.49901,2689.9,2689.2,1.6243]
[1727447895105,0.37165,2689.5,2689.2,1.6243]
[1727447895296,0.92907,2689.7,2689.2,1.6243]
[1727447895501,0.37164,2689.6,2689.2,1.6243]
[1727447895905,0.37165,2689.5,2689.2,1.6243]
[1727447896101,0.92907,2689.7,2689.2,1.6243]
[1727447896401,6.7778,2689.9,2689.2,1.6243]
[1727447896603,0.3212777,2689.8,2689.4,0.37166]
[1727447896901,0.37159,2690.0,2689.5,0.37164]
[1727447897095,0.32122881,2689.9,2689.6,0.37163]
[1727447897292,4.52727986,2690.2,2689.3,1.2248]
[1727447897499,0.3212214,2690.1,2689.5,0.92913]
[1727447897694,0.3212214,2690.0,2689.6,0.37163]
[1727447898002,0.3212214,2690.0,2689.5,0.74274]
[1727447898003,0.3212214,2689.9,2689.5,0.74274]
[1727447898198,0.32123714,2689.8,2689.5,0.3711]
[1727447898397,0.37163,2689.7,2689.5,0.3711]
[1727447899413,0.37162,2689.8,2689.5,0.3711]
[1727447899699,0.321248,2689.7,2689.5,0.3711]
[1727447899899,0.37168,2689.3,2689.2,1.2532]
[1727447900206,0.3717,2689.2,2688.9,1.3354]
[1727447900401,3.94169,2689.3,2688.9,1.7065]
[1727447900700,0.32124397,2689.2,2688.9,1.7065]
[1727447900891,3.94169,2689.3,2688.9,1.7065]
[1727447901095,0.32124835,2689.2,2688.9,1.7065]
[1727447901304,3.57,2689.3,2688.9,1.7065]
[1727447901507,0.3717,2689.2,2688.9,1.7065]
[1727447901898,3.94168,2689.3,2688.9,1.7065]
[1727447902109,3.57,2689.3,2688.9,1.7065]
[1727447902806,3.2078,2689.4,2688.9,2.07823]
[1727447902807,3.57947,2689.4,2688.9,2.07823]
[1727447903003,0.32106903,2689.3,2689.1,0.37171]
[1727447903207,0.95727986,2689.9,2689.2,4.4429]
[1727447903404,0.32099564,2689.8,2689.2,4.4429]
[1727447903707,0.32099564,2689.7,2689.2,4.814]
[1727447903903,0.32099564,2689.6,2689.5,3.2078]
[1727447904093,3.57,2690.2,2689.8,0.3716]
[1727447904301,0.37158,2690.0,2689.9,1.2713]
[1727447904499,0.69252943,2690.0,2689.9,1.2713]
[1727447905398,0.69252943,2690.0,2689.5,3.2078]
[1727447905399,4.03854943,2690.0,2689.5,3.2078]
[1727447905605,0.37163,2689.7,2689.5,3.5789]
[1727447905805,0.32093788,2689.6,2689.5,0.3711]
[1727447906202,0.32093788,2689.6,2689.2,4.85079]
[1727447906404,0.32093788,2689.5,2689.3,0.37167]
[1727447906709,3.57,2689.8,2689.2,5.22189]
[1727447906710,0.37164,2689.6,2689.2,5.22189]
[1727447906910,0.37168,2689.4,2689.2,4.8502]
[1727447907106,3.57,2689.8,2689.2,4.8502]